bitfinex/quotes_ETHUSD_20251120
["timestamp","ask_amount","ask_price","bid_price","bid_amount"]
[1763615750997,0.4605,3049.3,3048.0,4.03528534]
[1763615750998,1.31249664,3048.5,3047.2,0.1828]
[1763615751196,1.31249664,3048.5,3047.6,0.4954]
[1763615751197,2.88039669,3048.4,3047.6,0.4954]
[1763615751494,0.90699264,3048.1,3047.3,0.7499812]
[1763615751672,0.4577,3047.7,3046.9,7.22792309]
[1763615751876,0.90699264,3047.9,3046.9,7.22792309]
[1763615752080,0.111,3048.2,3047.8,3.40229669]
[1763615752277,0.111,3048.2,3047.9,0.4599]
[1763615752483,0.111,3048.2,3048.1,0.4599]
[1763615752997,0.111,3048.2,3048.1,1.1381]
[1763615753492,0.111,3048.4,3048.1,1.1381]
[1763615753897,0.111,3048.4,3048.3,0.4599]
[1763615754194,0.111,3048.4,3048.1,0.6782]
[1763615754504,0.111,3048.4,3048.1,0.1828]
[1763615755071,0.111,3048.4,3048.1,3.46352865]
[1763615755266,0.111,3048.4,3048.0,3.28179887]
[1763615755771,0.90699264,3048.5,3048.0,3.28179887]
[1763615755971,0.4644,3048.5,3048.0,3.28179887]
[1763615756582,1.37139264,3048.5,3048.0,3.28179887]
[1763615756772,0.4644,3048.5,3048.0,3.28179887]
[1763615757102,0.90699264,3048.6,3048.0,3.77719887]
[1763615757803,0.90699264,3048.5,3048.0,0.001]
[1763615758105,0.111,3048.4,3048.1,0.162]
[1763615759802,0.111,3048.4,3048.0,3.28180922]
[1763615760403,1.48239264,3048.4,3048.0,0.001]
[1763615760786,3.39143362,3048.4,3048.0,0.001]
[1763615760981,0.111,3048.4,3048.3,0.4599]
[1763615761394,0.111,3048.7,3048.3,0.9553]
[1763615761594,0.111,3048.7,3048.6,0.4599]
[1763615761987,0.6498,3049.1,3048.6,0.4599]
[1763615762192,0.5754,3049.0,3048.2,3.77591816]
[1763615762394,0.5754,3049.0,3048.3,0.39379182]
[1763615762611,0.4644,3049.2,3048.3,0.88919182]
[1763615762810,0.111,3048.9,3048.3,0.88408782]
[1763615763114,0.111,3048.9,3048.4,0.4954]
[1763615764613,0.111,3048.9,3048.5,3.28030178]
[1763615765009,0.5754,3048.9,3048.5,3.28030178]
[1763615766326,0.4605,3048.6,3048.1,4.04908452]
[1763615766528,5.15187176,3048.9,3048.1,4.04908452]
[1763615766529,0.0218,3048.5,3048.1,4.04908452]
[1763615767329,0.4644,3048.8,3048.4,0.4599]
[1763615767491,1.01799264,3048.9,3048.4,0.4599]
[1763615767701,4.18663665,3049.2,3048.5,0.4954]
[1763615767993,0.111,3049.1,3048.5,0.4954]
[1763615768194,4.18663665,3049.2,3048.5,0.4954]
[1763615768397,0.111,3049.0,3048.5,0.4954]
[1763615769036,3.96225601,3049.6,3048.5,0.4954]
[1763615769037,0.4735,3049.7,3048.9,0.4796]
[1763615769236,0.5865,3050.0,3049.1,0.4796]
[1763615769530,0.90699264,3049.9,3049.1,0.4796]
[1763615769824,0.111,3049.9,3049.2,0.6736]
[1763615770195,0.111,3049.9,3049.3,0.4908]
[1763615770510,1.01799264,3049.9,3049.3,0.4908]
[1763615770716,1.48088622,3049.9,3049.2,0.1828]
[1763615770933,0.51448629,3049.8,3048.9,0.4908]
[1763615771222,0.4678,3049.3,3048.8,3.279979]
[1763615771429,0.0047,3048.9,3048.4,0.111]
[1763615771629,0.4631,3048.8,3048.4,0.111]
[1763615771921,0.111,3049.0,3048.4,3.77120046]
[1763615772119,0.111,3049.0,3048.7,0.4796]
[1763615773632,0.41861627,3049.4,3048.9,0.4796]
[1763615773835,0.46289358,3049.9,3049.3,0.6612]
[1763615774041,0.111,3049.8,3049.4,0.4796]
[1763615774333,0.002,3050.0,3049.9,0.4796]
[1763615775423,0.002,3050.0,3049.9,0.9704]
[1763615776030,0.002,3050.0,3049.9,5.15618866]
[1763615776227,0.002,3050.0,3049.9,0.4796]
[1763615777699,0.002,3050.0,3049.5,0.90699264]
[1763615777904,0.4671,3050.0,3049.5,4.67695202]
[1763615778103,0.4671,3050.0,3049.5,4.18615202]
[1763615778504,0.4671,3050.0,3049.1,0.111]
[1763615778505,0.0047,3049.6,3049.1,0.1839]
[1763615778744,0.0047,3049.6,3049.1,0.90699264]
[1763615778909,0.4735,3049.5,3048.9,3.27985006]
[1763615779906,3.39001846,3049.7,3048.9,3.77065006]
[1763615780231,0.111,3049.7,3049.0,0.4908]
[1763615780640,0.111,3049.7,3049.6,0.4796]
[1763615781347,3.27890693,3049.8,3049.6,0.4796]
[1763615781511,0.111,3049.8,3049.6,0.4796]
[1763615782437,3.38994447,3049.8,3049.6,0.4796]
[1763615782638,3.38994447,3049.8,3049.2,0.4908]
[1763615782639,0.111,3049.8,3049.2,3.77033356]
[1763615783241,0.111,3049.8,3049.3,0.4908]
[1763615784024,0.4735,3049.7,3049.1,3.46121854]
[1763615784422,0.111,3049.8,3049.6,0.4796]
[1763615784646,0.49752138,3049.8,3049.2,0.4908]
[1763615784947,3.77648277,3049.8,3049.2,3.77034326]
[1763615785452,0.49752138,3049.8,3049.2,3.77034326]
[1763615785942,0.111,3049.8,3049.3,0.4908]
[1763615786452,3.38990805,3049.8,3049.1,3.46121504]
[1763615786746,3.38990805,3049.8,3049.1,3.95201504]
[1763615787360,0.111,3049.8,3049.1,3.95201504]
[1763615787526,0.111,3049.8,3049.1,7.23167133]
[1763615788047,0.57,3049.8,3049.1,7.23167133]
[1763615788249,0.97368956,3049.8,3049.1,7.23167133]
[1763615788463,0.111,3049.8,3049.2,0.5]
[1763615789758,0.111,3049.8,3049.3,3.27944118]
[1763615789920,0.111,3049.8,3049.3,3.77944118]
[1763615790323,0.113,3049.8,3049.3,3.77944118]
[1763615792053,0.113,3049.8,3049.4,0.5]
[1763615792584,0.405504,3049.4,3048.3,0.001]
[1763615792853,0.4683,3048.4,3048.3,0.001]
[1763615793052,0.5793,3048.4,3048.3,0.001]
[1763615793350,1.0383,3048.4,3048.3,0.001]
[1763615793722,0.9273,3048.4,3048.3,0.001]
[1763615793922,4.31870939,3048.4,3048.3,0.001]
[1763615794123,1.22820077,3048.4,3048.3,0.001]
[1763615794355,0.5793,3048.4,3048.3,0.001]
[1763615794742,0.4683,3048.4,3048.3,0.001]
[1763615794947,0.111,3048.4,3048.3,0.4705]
[1763615795367,0.6109,3048.4,3048.3,0.001]
[1763615795869,0.111,3048.4,3048.3,0.4705]
[1763615797170,0.111,3048.4,3048.3,0.001]
[1763615797670,0.584,3048.4,3048.3,0.001]
[1763615798065,4.71004175,3048.4,3048.3,0.001]
[1763615798236,1.42963236,3048.4,3048.3,0.001]
[1763615798437,0.49743236,3048.4,3048.3,0.001]
[1763615798662,0.111,3048.4,3048.3,0.4857]
[1763615800366,0.111,3048.4,3048.3,3.766217]
[1763615800533,0.111,3048.4,3048.3,4.227217]
[1763615801945,0.111,3048.4,3048.3,0.9467]
[1763615802354,3.27976385,3049.0,3048.3,0.9467]
[1763615802671,0.81369306,3048.9,3048.3,0.4857]
[1763615803080,1.28119306,3048.9,3048.3,0.4857]
[1763615804110,0.4675,3048.8,3048.3,0.4857]
[1763615804768,4.09361475,3048.9,3048.3,4.22720784]
[1763615804970,4.09361475,3048.9,3048.3,0.9467]
[1763615805413,4.09361475,3048.9,3048.3,3.76621122]
[1763615805618,4.09361475,3048.9,3048.3,0.001]
[1763615805774,0.73734468,3048.8,3048.3,0.001]
[1763615806388,1.20484468,3048.8,3048.3,0.001]
[1763615806593,3.28008659,3048.7,3048.3,0.001]
[1763615807713,4.48484763,3048.8,3048.3,0.001]
[1763615808105,0.002,3048.7,3048.3,0.001]
[1763615808472,0.002,3048.7,3048.3,0.462]
[1763615809277,0.002,3048.7,3048.3,3.74249005]
[1763615809773,0.451,3048.4,3048.3,0.001]
[1763615809993,0.8825257,3048.7,3048.3,0.001]
[1763615810275,0.4150257,3048.7,3048.3,0.4857]
[1763615810881,3.28019418,3048.6,3048.3,0.4857]
[1763615811503,0.4150257,3048.7,3048.5,0.4847]
[1763615811709,0.002,3048.7,3048.5,0.4847]
[1763615812094,3.28210553,3048.7,3048.5,0.4847]
[1763615812298,3.28210553,3048.7,3048.0,3.28180865]
[1763615812299,0.0181,3048.4,3048.0,0.001]
[1763615812498,0.0224,3048.1,3048.0,0.001]
[1763615812983,3.77063225,3048.1,3048.0,0.001]
[1763615813325,4.79856706,3048.1,3048.0,0.001]
[1763615816016,5.20407106,3048.1,3048.0,0.001]
[1763615817118,8.32116278,3048.1,3048.0,0.001]
[1763615821136,8.62786039,3048.1,3048.0,0.001]
[1763615823433,4.33106706,3048.1,3048.0,0.001]
[1763615823815,4.79856706,3048.1,3048.0,0.001]
[1763615825437,5.24508021,3048.1,3048.0,0.001]
[1763615825644,5.55182695,3048.1,3048.0,0.001]
[1763615825812,6.45881959,3048.1,3048.0,0.001]
[1763615828241,4.44206706,3048.1,3048.0,0.001]
[1763615829043,0.0224,3048.1,3048.0,0.001]
[1763615829264,0.002,3048.7,3048.0,0.9543]
[1763615829450,0.111,3048.6,3048.1,0.6609]
[1763615829615,0.1982,3047.7,3046.3,0.1893]
[1763615829817,3.52569172,3047.2,3046.3,0.6664]
[1763615830037,0.111,3047.1,3046.3,0.6664]
[1763615830228,0.111,3047.1,3046.4,0.4771]
[1763615831415,0.48366917,3047.1,3046.4,0.4771]
[1763615831827,3.28191663,3047.0,3046.4,0.4771]
[1763615832034,3.28191663,3047.0,3046.4,3.75964664]
[1763615832235,3.76549989,3047.1,3046.4,3.75964664]
[1763615832438,7.04733061,3047.1,3046.5,0.4771]
[1763615832637,7.54593061,3047.1,3046.3,3.47195517]
[1763615833090,0.6673,3046.4,3045.9,0.1818]
[1763615833252,2.6910897,3047.0,3046.0,0.4771]
[1763615833253,0.111,3046.3,3046.0,0.4771]
[1763615833753,0.111,3046.3,3046.2,0.4762]
[1763615834579,0.5202,3046.3,3045.9,3.46490089]
[1763615834781,1.0179,3046.3,3045.6,3.28340683]
[1763615835287,4.2329723,3046.3,3045.6,0.4771]
[1763615835454,3.80292322,3046.3,3045.6,0.4771]
[1763615836290,3.80292322,3046.3,3045.6,3.76051453]
[1763615838273,4.30062322,3046.3,3045.5,3.2834809]
[1763615838456,3.69192322,3046.3,3045.6,0.4771]
[1763615838785,0.111,3046.2,3045.6,0.4771]
[1763615838986,0.111,3046.2,3045.6,1.1815114]
[1763615839201,0.111,3046.2,3045.3,0.4771]
[1763615839202,1.015104,3046.1,3045.3,0.4771]
[1763615839359,0.4986,3046.7,3045.1,0.90699264]
[1763615839554,0.516504,3046.6,3045.4,0.4771]
[1763615839951,0.405504,3046.4,3045.4,0.4771]
[1763615840159,3.28267078,3046.3,3045.5,3.28353308]
[1763615840350,0.111,3046.2,3045.4,3.28361144]
[1763615840550,0.6096,3046.2,3045.4,3.28361144]
[1763615840755,0.405504,3046.4,3045.4,3.28361144]
[1763615840756,3.7802234,3047.3,3046.1,0.658]
[1763615840992,0.111,3046.9,3046.2,0.4762]
[1763615841555,3.97052306,3047.0,3046.2,0.4762]
[1763615841556,0.6886,3047.0,3046.2,0.4762]
[1763615841823,0.19,3047.0,3046.3,0.4771]
[1763615841967,0.111,3046.9,3046.3,0.4771]
[1763615842168,3.47191761,3047.0,3046.3,3.75967271]
[1763615842371,0.54907706,3046.9,3046.3,3.28257271]
[1763615842694,0.4092,3046.4,3046.2,3.28274096]
[1763615842853,0.5202,3046.4,3046.0,3.28296426]
[1763615843054,0.111,3046.4,3046.3,0.4762]
[1763615843313,0.39705176,3046.9,3046.3,0.4762]
[1763615843473,0.111,3046.8,3046.3,0.4762]
[1763615843657,0.4986,3046.9,3045.1,0.1818]
[1763615843658,0.4092,3046.4,3045.1,0.1818]
[1763615843857,0.0041,3046.2,3045.1,0.1818]
[1763615844061,0.405504,3046.0,3045.1,0.1818]
[1763615844269,0.405504,3045.7,3044.8,0.90699264]
[1763615844694,0.405504,3045.5,3044.8,0.90699264]
[1763615844855,0.112,3045.4,3044.8,0.90699264]
[1763615845892,0.112,3045.4,3045.0,0.001]
[1763615846389,0.112,3045.4,3045.3,0.4762]
[1763615847291,0.112,3045.4,3045.1,3.46575221]
[1763615848491,0.112,3045.4,3045.1,3.28395221]
[1763615848694,0.112,3045.4,3045.0,0.001]
[1763615848888,0.112,3045.4,3045.0,3.2850546]
[1763615849678,0.112,3045.4,3045.0,6.56912684]
[1763615849863,0.112,3045.4,3045.0,7.05622684]
[1763615850083,0.112,3045.4,3045.0,6.56912684]
[1763615850401,0.112,3045.4,3045.0,0.001]
[1763615850911,0.586,3045.4,3045.0,0.001]
[1763615851998,0.4572,3045.1,3045.0,0.001]
[1763615852328,0.586,3045.4,3045.0,0.001]
[1763615852917,0.112,3045.4,3045.0,0.4881]
[1763615853108,0.181,3045.9,3045.3,0.4562]
[1763615853309,0.112,3045.8,3045.3,0.4562]
[1763615853744,0.04104146,3045.7,3045.3,0.4562]
[1763615854099,0.51504146,3045.7,3045.3,0.4562]
[1763615854547,0.51504146,3045.7,3045.1,0.5888]
[1763615854548,0.4572,3045.4,3045.1,3.2839644]
[1763615854701,0.15304012,3045.8,3045.1,3.3856644]
[1763615855029,0.90699264,3046.4,3045.7,0.4562]
[1763615855233,0.586,3046.3,3045.8,0.4562]
[1763615855439,0.474,3046.9,3045.8,0.4562]
[1763615855736,0.112,3046.8,3045.2,0.90699264]
[1763615855912,0.112,3046.8,3045.3,2.08513254]
[1763615856113,0.405504,3046.6,3045.3,2.08513254]
[1763615856314,0.405504,3046.6,3045.6,3.9703059]
[1763615856623,0.474,3046.5,3045.7,6.56663492]
[1763615858134,0.474,3046.5,3045.7,3.28331746]
[1763615858303,0.474,3046.5,3045.7,6.56663492]
[1763615859307,0.4265,3045.8,3045.7,3.28331746]
[1763615859527,0.112,3046.1,3045.7,6.56663492]
[1763615860347,0.4301,3045.8,3045.4,3.28355098]
[1763615860546,0.6181,3045.8,3045.4,6.56719188]
[1763615861525,1.0885,3045.8,3045.4,6.56719188]
[1763615861827,0.6181,3045.8,3045.4,6.56719188]
[1763615862143,0.4301,3045.8,3045.4,6.56719188]
[1763615863842,0.4301,3045.8,3045.4,7.02419188]
[1763615864048,0.0211,3045.5,3045.0,0.001]
[1763615864213,0.188,3046.0,3045.0,0.001]
[1763615864214,0.0251,3045.1,3045.0,0.001]
[1763615864413,0.542604,3045.1,3045.0,0.001]
[1763615864739,1.32000307,3045.1,3045.0,0.001]
[1763615865522,5.51096011,3045.1,3045.0,0.001]
[1763615866064,6.39044143,3045.1,3045.0,0.001]
[1763615866426,7.0972548,3045.1,3045.0,0.001]
[1763615866753,6.39044143,3045.1,3045.0,0.001]
[1763615867664,3.10647703,3045.1,3045.0,0.001]
[1763615867848,1.64459571,3045.1,3045.0,0.001]
[1763615868054,0.1371,3045.1,3045.0,0.001]
[1763615868858,0.64854955,3045.1,3045.0,0.001]
[1763615869157,1.013004,3045.1,3045.0,0.001]
[1763615869949,0.6075,3045.1,3045.0,0.001]
[1763615870349,1.0291,3045.1,3045.0,0.001]
[1763615870553,0.852404,3045.1,3045.0,0.001]
[1763615870755,0.5589,3045.1,3045.0,0.001]
[1763615871447,3.28314671,3045.9,3045.0,0.4593]
[1763615871646,0.4704,3045.7,3045.0,3.74327355]
[1763615871960,0.405504,3045.6,3045.0,3.74327355]
[1763615872160,0.71189128,3045.6,3045.0,3.74327355]
[1763615872363,0.4704,3045.5,3045.0,0.001]
[1763615872564,0.30638728,3045.5,3045.0,3.28507115]
[1763615872865,0.112,3045.4,3045.0,3.28507115]
[1763615873678,0.112,3045.4,3045.0,0.001]
[1763615875571,3.63035923,3045.8,3045.3,0.4583]
[1763615875572,0.34711467,3045.8,3045.3,0.4583]
[1763615875780,0.112,3045.7,3045.3,0.4583]
[1763615876079,0.112,3045.7,3045.3,3.7420423]
[1763615876479,0.112,3045.7,3045.3,0.4583]
[1763615876845,0.5824,3045.7,3045.2,3.28380921]
[1763615877462,0.5824,3045.7,3045.0,3.28502317]
[1763615877463,0.5824,3045.7,3045.0,3.28502453]
[1763615877846,0.5824,3045.7,3045.0,0.001]
[1763615878198,0.44654681,3045.6,3045.0,0.001]
[1763615878381,0.431227,3045.5,3045.0,0.001]
[1763615878747,0.4704,3045.5,3045.0,0.001]
[1763615879681,0.405504,3045.6,3045.0,0.001]
[1763615881052,0.4469,3045.1,3045.0,0.001]
[1763615881579,0.15304685,3045.3,3045.0,0.001]
[1763615881779,0.112,3045.3,3045.0,0.4593]
[1763615882304,0.112,3045.3,3045.1,3.2839644]
[1763615882796,0.112,3045.3,3045.2,0.9153]
[1763615884594,0.112,3045.7,3045.2,7.48301312]
[1763615884955,0.112,3045.7,3045.3,0.457]
[1763615886282,0.112,3045.7,3045.6,0.4583]
[1763615886488,0.112,3045.7,3045.5,3.28351725]
[1763615886684,0.4905,3045.4,3045.1,3.28393153]
[1763615886876,0.112,3045.7,3045.1,6.75119593]
[1763615889314,0.112,3045.7,3045.1,7.23869593]
[1763615890612,0.4704,3045.9,3045.1,10.72150183]
[1763615890906,0.112,3045.6,3045.3,3.28374872]
[1763615891570,0.112,3045.6,3045.3,3.77124872]
[1763615891915,0.112,3045.6,3045.5,0.4653]
[1763615892415,0.112,3045.6,3045.5,0.9528]
[1763615892710,0.112,3045.6,3045.5,0.4653]
[1763615892875,0.112,3045.6,3045.2,3.28385656]
[1763615893069,0.112,3045.6,3045.2,3.77135656]
[1763615893381,3.68848548,3046.1,3045.2,3.77135656]
[1763615893382,0.112,3046.2,3045.5,4.4356059]
[1763615893709,0.112,3046.2,3045.7,0.4653]
[1763615893884,0.04103607,3046.1,3045.7,0.4653]
[1763615894208,0.112,3046.2,3045.7,0.9528]
[1763615894777,0.112,3046.2,3045.9,2.77477348]
[1763615895003,0.04102665,3046.8,3046.1,0.4653]
[1763615895179,0.579,3046.7,3046.3,2.77477348]
[1763615895510,0.4529,3046.2,3046.1,2.77477348]
[1763615895811,0.4529,3046.2,3045.9,2.77477348]
[1763615896177,0.9198,3046.2,3045.9,2.77477348]
[1763615896806,0.4529,3046.2,3045.7,7.05413492]
[1763615897909,0.4669,3046.5,3045.8,0.4875]
[1763615898081,0.19,3047.0,3046.4,0.4653]
[1763615898418,0.112,3046.7,3046.4,0.4653]
[1763615899176,0.4529,3046.5,3045.8,0.4875]
[1763615899376,0.4529,3046.5,3045.9,0.4875]
[1763615899822,0.4529,3046.5,3046.0,6.56598818]
[1763615900472,0.9198,3046.5,3046.0,6.56598818]
[1763615900673,0.96083069,3046.5,3046.0,3.28299409]
[1763615900910,0.5649,3046.5,3046.1,0.189]
[1763615901616,0.112,3046.5,3046.4,0.4653]
[1763615901817,0.112,3046.9,3046.5,6.56491054]
[1763615902020,0.112,3046.9,3046.5,7.05241054]
[1763615902222,0.112,3046.9,3046.8,0.4653]
[1763615903833,0.112,3046.9,3046.8,4.23493207]
[1763615904991,0.112,3047.3,3046.8,7.51706414]
[1763615905192,0.112,3047.3,3046.8,4.23493207]
[1763615905719,0.112,3047.3,3046.8,7.51706414]
[1763615906022,0.112,3047.3,3046.9,0.4875]
[1763615906332,0.112,3047.3,3047.2,0.4653]
[1763615906539,0.4895,3047.0,3046.6,3.28228113]
[1763615906829,0.0410253,3046.9,3046.5,3.2824271]
[1763615907041,0.405504,3046.7,3046.1,0.1994]
[1763615907542,0.112,3046.8,3046.1,0.1994]
[1763615907701,0.5768,3046.8,3046.1,0.1994]
[1763615908027,0.5768,3046.8,3046.2,3.28277854]
[1763615909105,0.5768,3046.8,3045.5,0.4539]
[1763615909106,0.4862,3046.3,3045.5,0.4539]
[1763615909303,3.85893207,3046.8,3045.5,1.90118574]
[1763615909304,0.405504,3046.6,3045.5,1.90118574]
[1763615909509,0.4648,3046.7,3045.7,4.04203839]
[1763615909690,0.4648,3046.7,3045.8,0.4539]
[1763615909890,0.4648,3046.7,3045.9,6.56620374]
[1763615910313,0.4648,3046.7,3046.0,0.4539]
[1763615910718,0.4648,3046.7,3046.1,0.1994]
[1763615910919,0.4648,3046.7,3045.6,3.28339617]
[1763615910920,0.4957,3046.1,3045.1,0.6372]
[1763615911117,0.1166,3046.0,3045.2,3.28384566]
[1763615911532,0.6627,3045.9,3045.2,3.28384566]
[1763615911848,0.6627,3045.9,3045.2,6.56770222]
[1763615916274,0.112,3046.0,3045.2,11.65883394]
[1763615916433,0.112,3046.0,3045.9,0.4706]
[1763615917873,0.5469,3046.0,3045.3,0.112]
[1763615918072,0.5469,3046.0,3045.4,6.5672818]
[1763615918457,0.5469,3046.0,3045.5,0.4604]
[1763615918771,0.112,3046.0,3045.5,0.4604]
[1763615919447,0.112,3046.0,3045.4,6.5672818]
[1763615919660,0.49953877,3045.9,3045.4,6.5672818]
[1763615919847,0.69863877,3045.9,3045.4,6.5672818]
[1763615920269,0.69863877,3045.9,3045.3,6.56749744]
[1763615920741,0.4399,3045.4,3045.1,3.28487502]
[1763615921058,0.0046,3045.3,3045.1,3.28487502]
[1763615921770,0.0046,3045.3,3045.1,3.28493062]
[1763615922148,0.4767,3045.2,3045.1,3.28493062]
[1763615922338,0.4767,3045.2,3045.1,0.001]
[1763615924047,0.4219,3045.5,3045.1,0.001]
[1763615924897,0.881704,3045.2,3045.1,0.001]
[1763615925178,0.993704,3045.2,3045.1,0.001]
[1763615925361,1.4214427,3045.2,3045.1,0.001]
[1763615927695,1.0159387,3045.2,3045.1,0.001]
[1763615927899,0.5882,3045.2,3045.1,0.001]
[1763615928397,0.5876,3045.2,3045.1,0.001]
[1763615928595,1.416104,3045.2,3045.1,0.001]
[1763615929499,4.69996056,3045.2,3045.1,0.001]
[1763615929799,5.6480014,3045.2,3045.1,0.001]
[1763615930098,6.54117986,3045.2,3045.1,0.001]
[1763615934867,3.2573233,3045.2,3045.1,0.001]
[1763615935205,6.50013166,3045.2,3045.1,0.001]
[1763615936602,3.2162751,3045.2,3045.1,0.001]
[1763615936803,1.90009664,3045.2,3045.1,0.001]
[1763615937005,2.32309664,3045.2,3045.1,0.001]
[1763615937714,1.90009664,3045.2,3045.1,0.001]
[1763615938072,1.42449664,3045.2,3045.1,0.4677]
[1763615939206,1.01899264,3045.2,3045.1,0.4677]
[1763615943979,0.112,3045.2,3045.1,0.4677]
[1763615944185,0.111,3045.2,3045.1,0.4677]
[1763615944814,0.111,3045.2,3045.1,4.3947644]
[1763615944984,0.111,3045.2,3045.1,4.83434084]
[1763615946117,0.111,3045.2,3045.1,1.55037644]
[1763615946698,0.111,3045.2,3045.1,4.83434084]
[1763615948592,0.111,3045.2,3045.1,1.55037644]
[1763615948992,0.5389,3045.2,3045.1,0.001]
[1763615949309,1.0092,3045.2,3045.1,0.001]
[1763615949500,0.5389,3045.2,3045.1,0.001]
[1763615958441,0.002,3045.5,3045.1,0.4598]
[1763615958607,0.111,3045.2,3045.1,0.4598]
[1763615959139,0.5389,3045.2,3045.1,0.001]
[1763615959342,0.111,3045.2,3045.1,0.001]
[1763615960739,0.111,3045.2,3045.1,0.4598]
[1763615962645,0.05007718,3045.2,3045.1,0.4598]
[1763615963249,0.05007718,3045.2,3045.1,0.001]
[1763615964251,0.47797718,3045.2,3045.1,0.001]
[1763615964661,0.78567088,3045.2,3045.1,0.001]
[1763615965111,0.47797718,3045.2,3045.1,0.001]
[1763615965315,0.78567088,3045.2,3045.1,0.001]
[1763615965756,0.47797718,3045.2,3045.1,0.001]
[1763615965920,0.35777088,3045.2,3045.1,0.001]
[1763615966117,0.05007718,3045.2,3045.1,0.4598]
[1763615966639,0.35777088,3045.2,3045.1,0.001]
[1763615966848,0.05007718,3045.2,3045.1,0.4598]
[1763615967360,0.35777088,3045.2,3045.1,0.4598]
[1763615967522,0.05007718,3045.2,3045.1,0.4598]
[1763615967959,0.35777088,3045.2,3045.1,0.001]
[1763615968120,0.05007718,3045.2,3045.1,0.001]
[1763615968555,0.35777088,3045.2,3045.1,0.001]
[1763615968850,0.05007718,3045.2,3045.1,0.4538]
[1763615969019,0.05007718,3045.2,3045.1,0.9323]
[1763615969220,0.35777088,3045.2,3045.1,0.9323]
[1763615969521,0.05007718,3045.2,3045.1,0.9323]
[1763615969914,0.35777088,3045.2,3045.1,1.0992]
[1763615970114,0.05007718,3045.2,3045.1,5.13392986]
[1763615970861,0.3076937,3045.4,3045.1,11.19377557]
[1763615971154,0.002,3045.5,3045.3,3.22868131]
[1763615971455,0.002,3045.5,3045.4,0.9313]
[1763615971619,0.002,3045.5,3045.4,1.57960626]
[1763615972165,0.002,3045.5,3045.4,4.86324716]
[1763615972368,0.002,3045.5,3045.4,7.63912847]
[1763615973846,0.04304416,3045.5,3045.4,2.77588131]
[1763615974047,0.46,3045.5,3045.4,2.77588131]
[1763615974866,0.002,3045.5,3045.4,2.77588131]
[1763615975048,0.002,3045.5,3045.4,6.51232221]
[1763615975556,0.46,3045.5,3045.4,2.77588131]
[1763615977087,1.0222,3045.5,3045.3,2.77588131]
[1763615977297,0.113,3045.5,3045.3,2.77588131]
[1763615977484,0.4581,3045.4,3045.3,2.77588131]
[1763615978050,0.4581,3045.4,3045.1,0.001]
[1763615978252,0.4511,3045.4,3045.1,3.2849644]
[1763615978472,0.113,3045.5,3045.1,3.2849644]
[1763615978901,0.5737,3045.5,3045.1,3.2849644]
[1763615979365,0.5737,3045.5,3045.4,2.77588131]
[1763615979569,0.88146023,3045.5,3045.4,2.77588131]
[1763615979773,1.32996023,3045.5,3045.4,2.77588131]
[1763615981063,0.42076023,3045.5,3045.4,3.26598131]
[1763615981399,0.113,3045.5,3045.4,3.26598131]
[1763615982401,0.5615,3045.5,3045.4,2.77588131]
[1763615982689,0.86926023,3045.5,3045.4,2.77588131]
[1763615983893,0.42076023,3045.5,3045.4,3.26598131]
[1763615984074,0.113,3045.5,3045.4,3.26598131]
[1763615984271,0.113,3045.5,3045.4,2.77588131]
[1763615984572,0.5615,3045.5,3045.4,2.77588131]
[1763615984773,0.86926023,3045.5,3045.4,2.77588131]
[1763615986597,0.86926023,3045.5,3045.2,2.77588131]
[1763615986598,1.32986023,3045.5,3045.2,2.77588131]
[1763615986772,1.0221,3045.5,3045.2,2.77588131]
[1763615987595,0.0046,3045.3,3045.2,2.77588131]
[1763615988102,1.17861347,3045.3,3045.1,0.001]
[1763615988307,1.15731347,3045.2,3045.1,0.001]
[1763615988894,0.30780947,3045.2,3045.1,0.4911]
[1763615989073,0.4485,3045.2,3045.1,0.001]
[1763615989501,0.4895482,3045.2,3045.1,0.001]
[1763615989684,0.4485,3045.2,3045.1,0.001]
[1763615990198,0.04104685,3045.3,3045.1,0.001]
[1763615990369,0.30780347,3045.4,3045.1,0.001]
[1763615990567,0.5736,3045.5,3045.3,0.4901]
[1763615990568,0.113,3045.5,3045.3,0.4901]
[1763615991095,0.42078989,3045.5,3045.3,0.4901]
[1763615991401,0.42078989,3045.5,3045.4,3.26598131]
[1763615991611,0.42078989,3045.5,3045.4,2.77588131]
[1763615991903,0.113,3045.5,3045.4,3.26598131]
[1763615994708,0.86931737,3045.5,3045.1,0.6601]
[1763615994878,0.5615,3045.5,3045.2,2.77588131]
[1763615995204,0.113,3045.5,3045.4,3.26598131]
[1763615995903,1.09900367,3045.5,3045.4,3.26598131]
[1763615996412,1.40683104,3045.5,3045.4,3.26598131]
[1763615997394,1.85543104,3045.5,3045.4,2.77588131]
[1763615997910,0.113,3045.5,3045.4,3.75148131]
[1763615998115,0.113,3045.5,3045.4,4.12662944]
[1763615998995,0.113,3045.5,3045.4,3.64112944]
[1763615999214,0.113,3045.5,3045.4,3.26598131]
[1763615999382,0.89841997,3045.5,3045.4,2.77588131]
[1763616001009,0.89841997,3045.5,3045.4,6.54962221]
[1763616001010,0.42081997,3045.5,3045.4,6.54962221]
[1763616001206,0.002,3045.5,3045.4,4.73482915]
[1763616001405,0.002,3045.5,3045.4,10.79435136]
[1763616006233,0.002,3045.9,3045.4,18.3796258]
[1763616006403,0.002,3045.9,3045.8,6.04186262]
[1763616006911,0.002,3046.2,3045.8,13.20478194]
[1763616007114,0.002,3046.2,3045.9,2.6244099]